bitfinex/quotes_BTCUSD_20240731
["timestamp","ask_amount","ask_price","bid_price","bid_amount"]
[1722386987559,0.00849,66423.0,66421.0,0.150554]
[1722386987758,0.00849,66423.0,66419.0,0.001]
[1722386987759,0.00849,66423.0,66419.0,0.151558]
[1722386988045,0.00849,66423.0,66421.0,0.150554]
[1722386988458,0.00849,66423.0,66422.0,0.752762]
[1722386988668,0.00849,66423.0,66422.0,0.814862]
[1722386989861,0.00849,66423.0,66422.0,0.818862]
[1722386990522,0.00849,66423.0,66422.0,1.119967]
[1722386990704,0.00849,66423.0,66422.0,1.2619648]
[1722386990914,0.00849,66423.0,66422.0,1.3418648]
[1722386991338,0.00849,66423.0,66422.0,1.3438648]
[1722386991446,0.00849,66423.0,66422.0,1.3398648]
[1722386991904,0.00849,66423.0,66422.0,1.6489698]
[1722386992479,0.00849,66423.0,66422.0,1.6409698]
[1722386992691,0.00849,66423.0,66422.0,1.6389698]
[1722386992900,0.00849,66423.0,66422.0,1.6669698]
[1722386993551,0.00849,66423.0,66422.0,1.3658648]
[1722386994747,0.00849,66423.0,66422.0,1.6769698]
[1722386995368,0.00849,66423.0,66422.0,1.6669698]
[1722386996014,0.00849,66423.0,66422.0,1.3658648]
[1722386998194,0.44444115,66438.0,66422.0,1.3658648]
[1722386998195,0.329431,66459.0,66435.0,0.150522]
[1722386998401,0.150518,66437.0,66431.0,0.150531]
[1722386998603,0.1431,66436.0,66431.0,0.150531]
[1722386998808,0.1431,66436.0,66430.0,0.150534]
[1722386998809,0.293621,66436.0,66430.0,0.150534]
[1722386999011,0.293621,66436.0,66429.0,0.301072]
[1722386999012,0.1431,66436.0,66431.0,0.150531]
[1722386999214,0.1431,66436.0,66431.0,0.301063]
[1722386999439,0.1431,66436.0,66435.0,0.004]
[1722386999642,0.159004,66439.0,66435.0,0.004]
[1722386999866,0.159004,66439.0,66435.0,0.045559]
[1722387000701,0.309519,66439.0,66435.0,0.002]
[1722387000925,0.150518,66437.0,66435.0,0.002]
[1722387001126,0.150518,66437.0,66431.0,0.150531]
[1722387001356,0.00849,66439.0,66432.0,0.150529]
[1722387001574,0.00849,66439.0,66430.0,0.301064]
[1722387001575,0.301033,66438.0,66418.0,0.00915268]
[1722387001793,0.19184756,66439.0,66424.0,0.150547]
[1722387001794,0.301053,66434.0,66424.0,0.150547]
[1722387001998,0.301053,66434.0,66425.0,0.301091]
[1722387002201,0.301053,66434.0,66420.0,0.301112]
[1722387002202,0.1412,66437.0,66419.0,0.0644]
[1722387002431,0.150538,66429.0,66423.0,0.150548]
[1722387002621,0.150538,66429.0,66419.0,0.0644]
[1722387002622,0.150542,66427.0,66421.0,0.150554]
[1722387002830,0.150542,66427.0,66420.0,0.451667]
[1722387003057,0.301067,66431.0,66422.0,0.005]
[1722387003265,0.301071,66430.0,66420.0,0.301112]
[1722387003472,0.05345642,66435.0,66420.0,0.301112]
[1722387003679,0.05345642,66435.0,66419.0,0.0714]
[1722387003680,0.301065,66431.0,66419.0,0.0714]
[1722387003856,0.05345642,66435.0,66419.0,0.0714]
[1722387003857,0.1437,66429.0,66419.0,0.007]
[1722387004190,0.150541,66427.0,66422.0,0.15055]
[1722387004593,0.150541,66427.0,66421.0,0.150554]
[1722387005033,0.150541,66427.0,66422.0,0.150552]
[1722387005412,0.150541,66427.0,66420.0,0.323114]
[1722387005413,0.1437,66429.0,66423.0,0.150549]
[1722387005693,0.301051,66434.0,66427.0,0.15054]
[1722387005852,0.150523,66435.0,66425.0,0.301089]
[1722387006020,0.150525,66434.0,66428.0,0.150538]
[1722387006420,0.0787,66437.0,66427.0,0.301082]
[1722387006630,0.00849,66440.0,66434.0,0.0626]
[1722387007030,0.00849,66440.0,66436.0,0.0777]
[1722387007230,0.159004,66439.0,66436.0,0.0777]
[1722387007470,0.00849,66439.0,66437.0,0.150517]
[1722387007835,0.00849,66439.0,66436.0,0.15052]
[1722387008235,0.001,66437.0,66436.0,0.15052]
[1722387008448,0.001,66437.0,66436.0,0.451561]
[1722387008792,0.001,66437.0,66435.0,0.150522]
[1722387009455,0.001,66437.0,66436.0,0.15552]
[1722387009642,0.001,66437.0,66436.0,0.451561]
[1722387010329,0.001,66437.0,66436.0,1.0599727]
[1722387010902,0.001,66437.0,66436.0,0.5441317]
[1722387011113,0.001,66437.0,66436.0,0.15252]
[1722387011517,0.001,66437.0,66436.0,0.453561]
[1722387012395,0.001,66437.0,66436.0,0.461561]
[1722387015864,0.001,66437.0,66436.0,0.16052]
[1722387016078,0.001,66437.0,66436.0,0.461561]
[1722387016852,0.001,66437.0,66436.0,0.53625469]
[1722387017067,0.001,66437.0,66436.0,0.83729569]
[1722387017452,0.001,66437.0,66436.0,0.53625469]
[1722387018429,0.001,66437.0,66436.0,0.461561]
[1722387018777,0.001,66437.0,66436.0,0.762602]
[1722387020253,0.001,66437.0,66436.0,0.461561]
[1722387020906,0.001,66437.0,66436.0,0.762602]
[1722387021110,0.001,66437.0,66436.0,0.461561]
[1722387022912,0.001,66437.0,66436.0,0.01]
[1722387023550,0.001,66437.0,66436.0,0.16052]
[1722387024510,0.001,66437.0,66436.0,0.461561]
[1722387025671,0.001,66437.0,66436.0,0.16052]
[1722387026410,0.001,66437.0,66436.0,0.01]
[1722387028018,1.115529,66437.0,66436.0,0.01]
[1722387028165,1.36710044,66437.0,66436.0,0.01]
[1722387028368,1.55547351,66437.0,66436.0,0.01]
[1722387028579,1.5554967,66437.0,66436.0,0.01]
[1722387028986,1.5554967,66437.0,66436.0,0.008]
[1722387029196,1.5554967,66437.0,66435.0,0.000913]
[1722387029197,1.664484,66436.0,66435.0,0.000913]
[1722387029390,1.93358694,66436.0,66435.0,0.000913]
[1722387029729,2.23462794,66436.0,66435.0,0.000913]
[1722387030379,1.93358694,66436.0,66435.0,0.000913]
[1722387031005,1.93358694,66436.0,66435.0,0.001913]
[1722387031006,2.08580419,66436.0,66435.0,0.001913]
[1722387031212,1.93358694,66436.0,66435.0,0.001913]
[1722387031423,1.36719806,66436.0,66435.0,0.001913]
[1722387031626,1.66973879,66436.0,66435.0,0.001913]
[1722387031831,1.67948312,66436.0,66435.0,0.001913]
[1722387032031,1.79101978,66436.0,66435.0,0.001913]
[1722387032335,1.76947074,66436.0,66435.0,0.001913]
[1722387032537,1.93000863,66436.0,66435.0,0.001913]
[1722387032867,1.92847074,66436.0,66435.0,0.002913]
[1722387033068,1.92847074,66436.0,66435.0,0.001913]
[1722387033069,1.94847074,66436.0,66435.0,0.001913]
[1722387033480,1.9524657,66436.0,66435.0,0.002913]
[1722387033672,1.95147074,66436.0,66435.0,0.001913]
[1722387033971,1.85692892,66436.0,66435.0,0.000913]
[1722387034107,1.85692892,66436.0,66435.0,0.002913]
[1722387034108,1.85992892,66436.0,66435.0,0.002913]
[1722387034515,1.83992892,66436.0,66435.0,0.002913]
[1722387034832,1.78260836,66436.0,66435.0,0.002913]
[1722387035013,1.92923349,66436.0,66435.0,0.002913]
[1722387035218,1.85878608,66436.0,66435.0,0.002913]
[1722387035419,1.86034221,66436.0,66435.0,0.002913]
[1722387035617,1.85878801,66436.0,66435.0,0.002913]
[1722387035816,1.85878801,66436.0,66435.0,0.001913]
[1722387036109,1.83878801,66436.0,66435.0,0.001913]
[1722387036282,1.50102084,66436.0,66435.0,0.001913]
[1722387036481,1.50102084,66436.0,66435.0,0.002913]
[1722387036482,1.50485154,66436.0,66435.0,0.002913]
[1722387036670,1.50402084,66436.0,66435.0,0.002913]
[1722387036873,1.5051824,66436.0,66435.0,0.002913]
[1722387037072,1.50289392,66436.0,66435.0,0.001913]
[1722387037371,1.50473236,66436.0,66435.0,0.002913]
[1722387037778,1.36945853,66436.0,66435.0,0.002913]
[1722387038177,1.36981195,66436.0,66435.0,0.002913]
[1722387038547,0.92797095,66436.0,66435.0,0.002913]
[1722387038749,0.22588895,66436.0,66435.0,0.002913]
[1722387038957,0.77228056,66436.0,66435.0,0.002913]
[1722387039064,0.47123956,66436.0,66435.0,0.002913]
[1722387039270,0.47123956,66436.0,66435.0,0.001913]
[1722387039271,0.46668536,66436.0,66435.0,0.001913]
[1722387039471,0.46668536,66436.0,66435.0,0.000913]
[1722387039671,0.46668536,66436.0,66435.0,0.005913]
[1722387040098,0.01512436,66436.0,66435.0,0.2230073]
[1722387040485,0.01512436,66436.0,66435.0,0.065813]
[1722387041308,0.01512436,66436.0,66435.0,0.002913]
[1722387041309,0.16564436,66436.0,66435.0,0.002913]
[1722387041722,0.01512436,66436.0,66435.0,0.002913]
[1722387042128,0.01512436,66436.0,66435.0,0.000913]
[1722387042446,0.01512436,66436.0,66435.0,0.158436]
[1722387042597,0.01512436,66436.0,66435.0,0.007913]
[1722387042803,0.01512436,66436.0,66435.0,0.000913]
[1722387043002,0.01512436,66436.0,66435.0,0.151436]
[1722387043203,0.01512436,66436.0,66435.0,0.012913]
[1722387043405,0.01512436,66436.0,66435.0,0.004913]
[1722387043811,0.16564436,66436.0,66435.0,0.013913]
[1722387044048,0.46668536,66436.0,66435.0,0.013913]
[1722387044625,0.76772636,66436.0,66435.0,0.013913]
[1722387044818,0.46668536,66436.0,66435.0,0.013913]
[1722387045030,0.16564436,66436.0,66435.0,0.013913]
[1722387046137,0.01512436,66436.0,66435.0,0.013913]
[1722387046597,0.001,66437.0,66435.0,0.013913]
[1722387046823,0.001,66437.0,66436.0,0.0797]
[1722387047023,0.151518,66437.0,66436.0,0.0797]
[1722387047352,0.5003561,66437.0,66436.0,0.0797]
[1722387047552,0.451561,66436.0,66435.0,0.013913]
[1722387047750,0.752602,66436.0,66435.0,0.013913]
[1722387048400,0.46681236,66436.0,66435.0,0.013913]
[1722387048603,0.46681236,66436.0,66435.0,0.009913]
[1722387048905,0.46681236,66436.0,66435.0,0.012913]
[1722387049139,0.46681236,66436.0,66435.0,0.003913]
[1722387049317,0.46681236,66436.0,66435.0,0.008913]
[1722387049729,0.46681236,66436.0,66435.0,0.004913]
[1722387050182,0.46681236,66436.0,66435.0,0.013913]
[1722387052312,0.4666312,66436.0,66435.0,0.013913]
[1722387055191,0.1655902,66436.0,66435.0,0.013913]
[1722387055353,0.01525136,66436.0,66435.0,0.013913]
[1722387055559,0.01525136,66436.0,66435.0,0.076613]
[1722387055760,0.01525136,66436.0,66435.0,0.155413]
[1722387056528,0.01525385,66436.0,66435.0,0.155413]
[1722387058471,0.01525385,66436.0,66435.0,0.606982]
[1722387058687,0.01525385,66436.0,66435.0,0.305936]
[1722387058907,0.001,66437.0,66436.0,0.15052]
[1722387059109,0.001,66437.0,66436.0,0.451561]
[1722387059457,0.01624542,66437.0,66436.0,0.8132994]
[1722387059662,0.001,66437.0,66436.0,0.9546994]
[1722387060264,0.001,66437.0,66436.0,0.9656994]
[1722387060506,0.001,66437.0,66436.0,0.9576994]
[1722387060733,0.001,66437.0,66436.0,0.9716994]
[1722387061211,0.001,66437.0,66436.0,0.609961]
[1722387061427,0.001,66437.0,66436.0,0.606961]
[1722387061636,0.001,66437.0,66436.0,0.908002]
[1722387061851,0.001,66437.0,66436.0,0.606961]
[1722387062061,0.001,66437.0,66436.0,0.29192]
[1722387062273,0.001,66437.0,66436.0,0.1554]
[1722387062479,0.151518,66437.0,66436.0,0.1634]
[1722387062654,0.16412554,66437.0,66436.0,0.1494]
[1722387062894,0.46516254,66437.0,66436.0,0.1554]
[1722387063132,0.76619954,66437.0,66436.0,0.014]
[1722387063341,0.76619954,66437.0,66435.0,0.000913]
[1722387063342,0.451561,66436.0,66435.0,0.000913]
[1722387063548,0.752602,66436.0,66435.0,0.000913]
[1722387063789,0.50664932,66436.0,66435.0,0.000913]
[1722387063995,0.21825807,66436.0,66435.0,0.000913]
[1722387064205,0.51954599,66436.0,66435.0,0.000913]
[1722387064636,0.21850499,66436.0,66435.0,0.000913]
[1722387065296,0.06795859,66436.0,66435.0,0.000913]
[1722387065525,0.06795859,66436.0,66435.0,0.065713]
[1722387065745,0.06795859,66436.0,66435.0,0.238236]
[1722387065746,0.01264975,66436.0,66435.0,0.238236]
[1722387065957,0.001,66437.0,66436.0,0.15052]
[1722387066183,0.001,66437.0,66436.0,0.45457109]
[1722387066441,0.001,66437.0,66436.0,0.47181667]
[1722387066640,0.001,66437.0,66436.0,0.77285767]
[1722387067855,0.001,66437.0,66436.0,0.47181667]
[1722387068641,0.001,66437.0,66436.0,0.48581667]
[1722387069022,0.001,66437.0,66436.0,0.46857109]
[1722387069225,0.001,66437.0,66436.0,0.17552]
[1722387069438,0.001,66437.0,66436.0,0.025]
[1722387069985,0.01363941,66437.0,66436.0,0.025]
[1722387070809,0.01363941,66437.0,66436.0,0.17552]
[1722387071318,0.01363941,66437.0,66436.0,0.5689956]
[1722387071523,0.001,66437.0,66436.0,0.2679546]
[1722387071719,0.001,66437.0,66436.0,0.025]
[1722387072308,0.16415056,66437.0,66436.0,0.025]
[1722387072678,0.01363256,66437.0,66436.0,0.025]
[1722387074694,0.16415056,66437.0,66436.0,0.025]
[1722387074899,0.21974072,66437.0,66436.0,0.025]
[1722387075575,0.06922272,66437.0,66436.0,0.025]
[1722387075774,0.01363256,66437.0,66436.0,0.2045998]
[1722387075996,0.01363256,66437.0,66436.0,0.2801998]
[1722387076200,0.01363256,66437.0,66436.0,0.0866]
[1722387076401,0.06616761,66437.0,66436.0,0.0816]
[1722387076816,0.06616761,66437.0,66436.0,0.0926]
[1722387077116,0.0661667,66437.0,66436.0,0.0926]
[1722387077338,0.01363256,66437.0,66436.0,0.0926]
[1722387077543,0.06617819,66437.0,66436.0,0.0926]
[1722387077747,0.06617819,66437.0,66436.0,0.0866]
[1722387078123,0.06617819,66437.0,66436.0,0.017]
[1722387078124,0.81877019,66437.0,66436.0,0.017]
[1722387078260,1.27358068,66437.0,66436.0,0.017]
[1722387078466,1.26440719,66437.0,66436.0,0.017]
[1722387078673,1.56544419,66437.0,66436.0,0.017]
[1722387079091,1.65214598,66437.0,66436.0,0.011]
[1722387079598,1.65214598,66437.0,66435.0,0.000913]
[1722387079599,1.053643,66436.0,66435.0,0.000913]
[1722387079835,1.10618863,66436.0,66435.0,0.000913]
[1722387080033,1.23164545,66436.0,66435.0,0.000913]
[1722387080236,1.26007987,66436.0,66435.0,0.000913]
[1722387081212,1.64152087,66436.0,66435.0,0.000913]
[1722387081416,1.80492087,66436.0,66435.0,0.000913]
[1722387082250,1.66566831,66436.0,66435.0,0.000913]
[1722387082448,1.36465303,66436.0,66435.0,0.001913]
[1722387082674,1.36265303,66436.0,66435.0,0.001913]
[1722387082864,1.3506453,66436.0,66435.0,0.001913]
[1722387083690,1.3486453,66436.0,66435.0,0.001913]
[1722387083897,1.3486453,66436.0,66435.0,0.000913]
[1722387084100,1.3586453,66436.0,66435.0,0.001913]
[1722387084522,1.35813638,66436.0,66435.0,0.001913]
[1722387084727,1.35813638,66436.0,66435.0,0.000913]
[1722387084728,1.35013638,66436.0,66435.0,0.000913]
[1722387084928,1.35913638,66436.0,66435.0,0.001913]
[1722387085561,1.29807456,66436.0,66435.0,0.000913]
[1722387085760,1.35199736,66436.0,66435.0,0.000913]
[1722387085905,1.35499736,66436.0,66435.0,0.001913]
[1722387086314,1.35799736,66436.0,66435.0,0.001913]
[1722387086540,1.90583836,66436.0,66435.0,0.001913]
[1722387086753,1.88583836,66436.0,66435.0,0.001913]
[1722387086953,1.90583836,66436.0,66435.0,0.001913]
[1722387087183,2.15123016,66436.0,66435.0,0.001913]
[1722387087407,2.06483836,66436.0,66435.0,0.001913]
[1722387087878,2.15072775,66436.0,66435.0,0.001913]
[1722387088151,3.31903836,66436.0,66435.0,0.001913]
[1722387088379,3.42792754,66436.0,66435.0,0.001913]
[1722387088706,4.02884539,66436.0,66435.0,0.001913]
[1722387089085,4.02884539,66436.0,66411.0,0.0613]
[1722387089086,0.451725,66412.0,66411.0,0.0613]
[1722387089296,0.45872668,66412.0,66411.0,0.0613]
[1722387090008,0.15757668,66412.0,66411.0,0.0613]
[1722387090393,0.0902527,66421.0,66411.0,0.13664716]
[1722387090636,0.0015542,66420.0,66419.0,0.150558]
[1722387090843,0.0015542,66420.0,66419.0,0.076]
[1722387091020,0.3913357,66427.0,66419.0,0.076]
[1722387091021,0.15055,66423.0,66419.0,0.076]
[1722387091440,0.301095,66425.0,66419.0,0.1202641]
[1722387091441,0.1521072,66422.0,66419.0,0.1202641]
[1722387091640,0.1521072,66422.0,66419.0,0.076]
[1722387091641,0.150553,66422.0,66419.0,0.076]
[1722387092000,0.0015542,66421.0,66419.0,0.076]
[1722387092406,0.0025542,66421.0,66419.0,0.077]
[1722387092630,0.09485442,66421.0,66419.0,0.077]
[1722387092803,0.0025542,66421.0,66420.0,0.451671]
[1722387093176,0.0015542,66425.0,66424.0,0.150547]
[1722387093389,0.1127296,66435.0,66428.0,0.1443]
[1722387093390,0.301049,66435.0,66428.0,0.1443]
[1722387093601,0.150525,66434.0,66428.0,0.1433]
[1722387093840,0.150525,66434.0,66429.0,0.150535]
[1722387093841,0.00099999,66433.0,66429.0,0.150535]
[1722387094048,0.301866,66438.0,66431.0,0.150531]
[1722387094049,0.150521,66436.0,66431.0,0.150531]
[1722387094258,0.301042,66436.0,66428.0,0.1433]
[1722387094435,0.150525,66434.0,66428.0,0.293837]
[1722387094975,0.155525,66434.0,66428.0,0.293837]
[1722387095160,0.155525,66434.0,66428.0,0.292837]
[1722387095284,0.150525,66434.0,66429.0,0.150536]
[1722387095495,0.05262639,66433.0,66429.0,0.150536]
[1722387095711,0.006,66434.0,66428.0,0.1423]
[1722387095911,0.150533,66431.0,66428.0,0.1423]
[1722387096111,0.301055,66433.0,66428.0,0.1423]
[1722387096359,0.301061,66432.0,66428.0,0.1463]
[1722387096562,0.150534,66430.0,66428.0,0.1463]
[1722387096787,0.150532,66431.0,66428.0,0.1423]
[1722387097004,0.150532,66431.0,66428.0,0.1483]
[1722387097936,0.150532,66431.0,66428.0,0.1493]
[1722387098544,0.150532,66431.0,66428.0,0.1433]
[1722387098935,0.00183,66437.0,66428.0,0.297838]
[1722387099135,0.150525,66434.0,66429.0,0.150535]
[1722387099346,0.150525,66434.0,66428.0,0.299838]
[1722387099911,0.150521,66436.0,66428.0,0.1433]
[1722387100112,0.150521,66436.0,66431.0,0.150532]
[1722387100234,0.00183,66437.0,66428.0,0.1443]
[1722387100439,0.00183,66437.0,66433.0,0.150526]
[1722387100690,0.00183,66437.0,66431.0,0.301063]
[1722387100889,0.00183,66437.0,66428.0,0.1443]
[1722387101097,0.00183,66437.0,66436.0,0.592261]
[1722387101306,0.00183,66437.0,66436.0,0.892302]
[1722387102107,0.00383,66437.0,66436.0,1.193343]
[1722387102349,0.00383,66437.0,66436.0,1.195343]
[1722387102570,0.00383,66437.0,66436.0,1.3128773]
[1722387102790,0.00383,66437.0,66436.0,1.3158773]
[1722387103222,0.00383,66437.0,66436.0,1.3128773]
[1722387103430,0.00183,66437.0,66436.0,1.193343]
[1722387103866,0.00283,66437.0,66436.0,1.193343]
[1722387104317,0.00183,66437.0,66436.0,1.193343]
[1722387104519,0.00283,66437.0,66436.0,1.219343]
[1722387104731,0.00283,66437.0,66436.0,0.918302]
[1722387107874,0.00283,66437.0,66436.0,0.617261]
[1722387108078,0.00283,66437.0,66436.0,0.1667]
[1722387108287,0.00283,66437.0,66436.0,0.618261]
[1722387109241,0.00283,66437.0,66436.0,0.604261]
[1722387109466,0.00183,66437.0,66436.0,0.606261]
[1722387109879,0.00283,66437.0,66436.0,0.617261]
[1722387110092,0.00283,66437.0,66436.0,0.918302]
[1722387110333,0.00183,66437.0,66436.0,0.999133]
[1722387110556,0.00283,66437.0,66436.0,1.311174]
[1722387110795,0.00283,66437.0,66436.0,1.205343]
[1722387111006,0.00383,66437.0,66436.0,1.219343]
[1722387111423,0.00283,66437.0,66436.0,1.194343]
[1722387111622,0.00383,66437.0,66436.0,1.208343]
[1722387113307,0.00383,66437.0,66436.0,0.919302]
[1722387113308,0.00483,66437.0,66436.0,0.919302]
[1722387113931,0.00483,66437.0,66436.0,0.026]
[1722387114140,0.00483,66437.0,66436.0,0.477561]
[1722387114557,0.00483,66437.0,66436.0,0.17652]
[1722387114778,0.0229937,66437.0,66436.0,0.026]
[1722387114984,0.155348,66437.0,66436.0,0.026]
[1722387115397,0.456385,66437.0,66436.0,0.026]
[1722387115821,0.757422,66437.0,66436.0,0.026]
[1722387116026,0.901722,66437.0,66436.0,0.026]
[1722387117749,0.95151122,66437.0,66436.0,0.026]
[1722387118989,0.94951122,66437.0,66436.0,0.012]
[1722387119402,0.64947422,66437.0,66436.0,0.022]
[1722387120210,0.94951122,66437.0,66436.0,0.01]
[1722387120614,0.95051122,66437.0,66436.0,0.016]
[1722387120765,0.95092816,66437.0,66436.0,0.016]
[1722387121173,1.25165601,66437.0,66436.0,0.016]
[1722387121985,1.36432893,66437.0,66436.0,0.016]
[1722387122619,1.25065601,66437.0,66436.0,0.006]
[1722387123035,1.201759,66437.0,66436.0,0.006]
[1722387123246,1.86932838,66437.0,66436.0,0.006]
[1722387123647,0.150548,66424.0,66419.0,0.150558]
[1722387123857,0.301061,66432.0,66422.0,0.0611]
[1722387123858,0.09015276,66432.0,66422.0,0.0611]
[1722387124070,0.24713,66437.0,66430.0,0.07534716]
[1722387124071,0.04963071,66431.0,66430.0,0.07534716]
[1722387124307,0.09798276,66437.0,66430.0,0.07534716]
[1722387124308,0.00783,66437.0,66436.0,0.15052]
[1722387124521,0.00783,66437.0,66436.0,0.1376]
[1722387124522,0.00283,66437.0,66436.0,0.1376]
[1722387124733,0.0514568,66437.0,66436.0,0.1376]
[1722387124936,0.0514568,66437.0,66436.0,0.28812]
[1722387125143,0.0514568,66437.0,66436.0,0.1376]
[1722387125551,0.0514568,66437.0,66436.0,0.1436]
[1722387125768,0.0514568,66437.0,66436.0,0.1456]
[1722387126214,0.0514568,66437.0,66436.0,0.29612]
[1722387126215,0.05166824,66437.0,66436.0,0.29612]
[1722387126631,0.05166824,66437.0,66436.0,0.1456]
[1722387126838,0.11363249,66437.0,66436.0,0.29612]
[1722387127055,0.05166824,66437.0,66436.0,0.29612]
[1722387128752,0.00183,66437.0,66436.0,0.898202]
[1722387130206,0.00183,66437.0,66436.0,0.008]
[1722387130207,0.14423,66437.0,66436.0,0.008]
[1722387130416,0.75925246,66437.0,66436.0,0.008]
[1722387130616,1.07014487,66437.0,66436.0,0.008]
[1722387131133,1.19001962,66437.0,66436.0,0.006]
[1722387131561,0.15053,66432.0,66425.0,0.150545]
[1722387131761,0.15053,66432.0,66423.0,0.301098]
[1722387131762,0.12399755,66431.0,66424.0,0.150547]
[1722387131980,0.04873515,66430.0,66425.0,0.150545]
[1722387132184,0.04873515,66429.0,66426.0,0.150543]
[1722387132391,0.04873515,66428.0,66423.0,0.150549]
[1722387132622,0.00718514,66428.0,66420.0,0.1407]
[1722387132799,0.04915186,66427.0,66422.0,0.150551]
[1722387133002,0.1577222,66427.0,66422.0,0.150551]
[1722387133210,0.150546,66425.0,66420.0,0.291255]
[1722387133409,0.36084511,66429.0,66420.0,0.1407]
[1722387133410,0.150548,66424.0,66420.0,0.1407]
[1722387133622,0.00719215,66424.0,66420.0,0.1407]
[1722387133833,0.15055,66423.0,66420.0,0.1407]
[1722387134056,0.00718821,66423.0,66420.0,0.1407]
[1722387134220,0.150544,66426.0,66421.0,0.150554]
[1722387134438,0.150543,66426.0,66425.0,0.007]
[1722387134837,0.150545,66425.0,66420.0,0.291256]
[1722387135007,0.001,66423.0,66420.0,0.299256]
[1722387135188,0.001,66423.0,66420.0,0.300256]
[1722387136178,0.150545,66425.0,66420.0,0.291256]
[1722387136388,0.001,66423.0,66420.0,0.304256]
[1722387136769,0.15155,66423.0,66420.0,0.1537]
[1722387136977,0.001,66423.0,66420.0,0.1537]
[1722387137174,0.001,66423.0,66421.0,0.150554]
[1722387137404,0.001,66423.0,66420.0,0.304256]
[1722387137579,0.150541,66427.0,66421.0,0.150554]
[1722387137781,0.001,66425.0,66421.0,0.150554]
[1722387137980,0.002,66425.0,66421.0,0.150554]
[1722387138411,0.001,66425.0,66421.0,0.150554]
[1722387138585,0.001,66423.0,66421.0,0.150554]
[1722387139145,0.150544,66426.0,66421.0,0.150554]
[1722387139353,0.150544,66426.0,66421.0,0.156554]
[1722387139593,0.001,66425.0,66421.0,0.006]
[1722387139805,0.002,66425.0,66422.0,0.15055]
[1722387140050,0.002,66425.0,66424.0,0.451642]
[1722387140250,0.002,66425.0,66424.0,0.516342]
[1722387140901,0.001,66425.0,66424.0,0.516342]
[1722387141347,0.001,66426.0,66425.0,0.451636]
[1722387141767,0.001,66426.0,66425.0,0.752727]
[1722387141979,0.001,66426.0,66425.0,0.751727]
[1722387142635,0.001,66426.0,66425.0,0.757727]
[1722387142953,0.002,66426.0,66425.0,0.767727]
[1722387143405,0.002,66426.0,66425.0,0.466636]
[1722387144026,0.002,66426.0,66425.0,0.767727]
[1722387144462,0.00181884,66426.0,66425.0,0.767727]
[1722387144687,0.00181884,66426.0,66425.0,0.466636]
[1722387147747,0.00181884,66426.0,66425.0,0.166545]
[1722387147952,0.05134908,66426.0,66425.0,0.166545]
[1722387148171,0.05134908,66426.0,66425.0,0.467636]
[1722387149003,0.00181884,66426.0,66425.0,0.467636]
[1722387149205,0.00181884,66426.0,66425.0,0.166545]
[1722387149623,0.05091309,66426.0,66425.0,0.166545]
[1722387149831,0.05091309,66426.0,66425.0,0.467636]
[1722387150000,0.05091309,66426.0,66425.0,0.166545]
[1722387150202,0.05091309,66426.0,66425.0,0.467636]
[1722387152374,0.05091309,66426.0,66425.0,0.166545]
[1722387152590,0.09136778,66426.0,66425.0,0.016]
[1722387152806,0.6330175,66426.0,66425.0,0.016]
[1722387153029,0.63301942,66426.0,66425.0,0.016]
[1722387153247,0.59256301,66426.0,66425.0,0.016]
[1722387153453,0.59356206,66426.0,66425.0,0.016]
[1722387153679,0.50227135,66426.0,66425.0,0.016]
[1722387153889,0.50327134,66426.0,66425.0,0.016]
[1722387154118,0.59356577,66426.0,66425.0,0.016]
[1722387154320,0.59256578,66426.0,66425.0,0.016]
[1722387154521,0.59356577,66426.0,66425.0,0.016]
[1722387155554,0.5931051,66426.0,66425.0,0.016]
[1722387155763,0.8941911,66426.0,66425.0,0.016]
[1722387155969,0.8931955,66426.0,66425.0,0.016]
[1722387156304,0.80289668,66426.0,66425.0,0.016]
[1722387156534,0.915761,66426.0,66425.0,0.016]
[1722387157102,0.50181068,66426.0,66425.0,0.016]
[1722387158309,0.59212707,66426.0,66425.0,0.016]
[1722387158528,0.61470617,66426.0,66425.0,0.016]
[1722387158770,0.50181068,66426.0,66425.0,0.016]
[1722387158911,0.50281067,66426.0,66425.0,0.016]
[1722387159113,0.50181068,66426.0,66425.0,0.016]
[1722387159290,0.05118167,66426.0,66425.0,0.016]
[1722387159494,0.04949471,66426.0,66425.0,0.016]
[1722387159686,0.50112371,66426.0,66425.0,0.016]
[1722387161030,0.61408318,66426.0,66425.0,0.016]
[1722387161282,0.61408256,66426.0,66425.0,0.016]
[1722387161882,0.50112371,66426.0,66425.0,0.016]
[1722387162108,0.50122726,66426.0,66425.0,0.016]
[1722387162340,0.20014126,66426.0,66425.0,0.016]
[1722387162511,0.04959826,66426.0,66425.0,0.1615]
[1722387162686,0.31310941,66426.0,66425.0,0.1615]
[1722387162883,0.16256641,66426.0,66425.0,0.1615]
[1722387163295,0.04959826,66426.0,66425.0,0.1615]
[1722387163500,0.13997117,66426.0,66425.0,0.1615]
[1722387163703,0.04959826,66426.0,66425.0,0.1615]
[1722387164082,0.13997117,66426.0,66425.0,0.1615]
[1722387164269,0.04959826,66426.0,66425.0,0.312045]
[1722387164491,0.13997291,66426.0,66425.0,0.312045]
[1722387165427,0.14052227,66426.0,66425.0,0.312045]
[1722387165691,0.14052227,66426.0,66425.0,0.613136]
[1722387165692,0.05014796,66426.0,66425.0,0.613136]
[1722387165943,0.00181884,66426.0,66425.0,0.914227]
[1722387169961,0.00162661,66426.0,66425.0,0.914227]
[1722387171049,0.00162661,66426.0,66425.0,1.0358517]
[1722387171628,0.00162661,66426.0,66425.0,1.3369427]
[1722387172825,0.00062661,66426.0,66425.0,1.3269427]